bitfinex/quotes_ETHUSD_20241129
["timestamp","ask_amount","ask_price","bid_price","bid_amount"]
[1732891756935,1.61095689,3626.1,3626.0,8.42578334]
[1732891757552,1.61095689,3626.1,3626.0,5.66793334]
[1732891757963,1.61095689,3626.1,3625.8,0.56236397]
[1732891758210,1.61095689,3626.0,3625.9,2.75792]
[1732891758370,1.61095689,3626.0,3625.7,2.75802]
[1732891758634,0.8199,3626.7,3626.4,2.75751]
[1732891758876,1.61089238,3626.6,3626.4,2.75751]
[1732891759140,1.61089238,3626.5,3626.4,2.75751]
[1732891759375,1.61089238,3626.5,3626.2,2.7577]
[1732891759684,1.61086471,3626.4,3626.2,2.13687367]
[1732891759984,0.8199,3626.7,3626.3,2.75763]
[1732891760311,0.25685488,3626.3,3625.5,3.96434414]
[1732891760578,0.77056452,3626.6,3625.4,2.75825]
[1732891760579,0.7664,3626.1,3625.4,2.75825]
[1732891760752,0.84033683,3626.0,3625.4,2.75825]
[1732891760948,0.84033683,3625.9,3624.6,3.93474414]
[1732891761165,0.84033683,3625.8,3625.1,2.75853]
[1732891761377,1.18156801,3625.7,3625.1,2.75853]
[1732891761581,0.77056452,3625.6,3624.7,0.55894005]
[1732891761750,0.58345965,3625.7,3624.6,0.7795]
[1732891761751,0.55,3625.4,3624.6,2.75892]
[1732891761968,0.17245616,3625.3,3624.6,2.75892]
[1732891762171,0.94302068,3625.2,3624.8,2.75876]
[1732891762371,0.94302068,3625.1,3624.6,2.75892]
[1732891762700,0.7819,3625.5,3624.6,2.75892]
[1732891762701,1.61090135,3625.0,3624.6,0.551799]
[1732891762907,0.41100349,3625.0,3624.9,2.75869]
[1732891763071,0.41100811,3625.0,3624.9,2.75869]
[1732891763408,1.61099161,3625.0,3624.9,2.75869]
[1732891764102,1.61099161,3625.0,3624.9,6.52829]
[1732891764255,1.61099161,3625.0,3624.9,7.77528483]
[1732891765601,0.75850611,3625.0,3624.9,7.77528483]
[1732891765986,0.58599961,3625.0,3624.9,7.77528483]
[1732891766173,0.75844199,3625.0,3624.9,8.33132189]
[1732891766375,0.75844199,3625.0,3624.9,5.57263189]
[1732891766866,0.75844199,3625.0,3624.9,8.33126189]
[1732891767365,0.75844199,3625.0,3624.9,5.33126189]
[1732891767567,0.42927917,3625.0,3624.9,5.33126189]
[1732891768363,0.42927917,3625.0,3624.9,8.48650603]
[1732891769313,0.42927917,3625.0,3624.9,11.48650603]
[1732891770210,0.42927917,3625.0,3624.9,8.48650603]
[1732891770395,0.42927917,3625.0,3624.8,1.76239772]
[1732891770580,0.7946,3625.6,3624.8,2.7587]
[1732891770581,0.42927917,3624.9,3624.8,2.7587]
[1732891771412,0.42927917,3624.9,3624.6,3.29773272]
[1732891771413,0.42927917,3624.9,3624.6,0.53881272]
[1732891771589,0.42927917,3624.8,3624.1,2.26212183]
[1732891771779,0.42927917,3624.7,3624.6,2.75892]
[1732891772317,0.42927917,3624.7,3624.2,2.75915]
[1732891772496,0.42927917,3624.6,3624.0,2.75937]
[1732891772698,0.7805,3624.8,3624.1,2.7593]
[1732891772699,0.42927917,3624.5,3624.1,2.7593]
[1732891772998,0.17246183,3624.4,3624.1,2.7593]
[1732891773181,0.42927917,3624.3,3623.9,2.75945]
[1732891773381,0.7805,3624.8,3623.7,5.91483414]
[1732891773382,0.42927917,3624.2,3624.0,2.75937]
[1732891773715,0.42927917,3624.1,3624.0,2.75937]
[1732891774571,0.42927917,3624.1,3624.0,2.13823253]
[1732891774997,0.42927917,3624.1,3624.0,2.75938]
[1732891775514,0.42927917,3624.1,3623.8,2.75947]
[1732891775671,1.61093809,3624.0,3623.6,2.75966]
[1732891775869,1.43855897,3623.9,3623.7,2.75959]
[1732891776069,1.20009152,3623.8,3623.7,2.75959]
[1732891776380,1.61111385,3623.8,3623.7,2.75959]
[1732891776567,1.61111385,3623.8,3623.4,2.75981]
[1732891776776,0.94320256,3623.7,3623.4,3.09210376]
[1732891777079,1.61111385,3623.6,3623.5,2.75976]
[1732891777300,1.61111385,3623.6,3623.5,1.89692306]
[1732891777601,1.61111385,3623.6,3623.2,2.75994]
[1732891777813,1.61111385,3623.5,3623.2,2.75994]
[1732891777975,1.76370256,3623.4,3623.0,2.76012]
[1732891778328,1.35422489,3623.3,3623.2,2.75999]
[1732891778532,1.61111385,3623.3,3623.1,2.96526656]
[1732891778812,0.25688896,3623.3,3623.2,2.75999]
[1732891779016,1.02597738,3623.3,3623.1,0.55170053]
[1732891779182,0.83943378,3623.2,3622.7,0.2884054]
[1732891779383,1.60891682,3623.1,3622.9,2.76016]
[1732891779618,0.66685869,3623.0,3622.9,2.76016]
[1732891779993,0.66685869,3623.0,3622.7,3.0487154]
[1732891779994,0.83943378,3623.0,3622.7,0.2884054]
[1732891780313,1.19854224,3622.9,3622.8,2.76029]
[1732891780514,1.19854224,3622.9,3622.7,0.2884054]
[1732891780766,0.8024,3623.3,3622.8,3.06517454]
[1732891780924,0.58275318,3623.2,3623.0,2.76011]
[1732891781130,0.17258946,3623.2,3623.0,2.76011]
[1732891781421,1.1791963,3623.1,3622.8,3.06516454]
[1732891781714,1.60812283,3623.0,3622.6,2.76042]
[1732891781917,1.35178576,3622.9,3622.6,2.76042]
[1732891782126,1.35178576,3622.8,3622.6,2.76042]
[1732891782476,1.19798352,3622.7,3622.6,2.76042]
[1732891782769,1.60812283,3622.7,3622.6,2.76042]
[1732891783018,1.60812283,3622.7,3622.3,3.0]
[1732891783201,1.60812283,3622.6,3622.3,6.75965363]
[1732891783401,1.60812283,3622.5,3622.3,2.76067]
[1732891783581,1.60812283,3622.4,3622.3,2.76067]
[1732891784277,1.60812283,3622.4,3622.3,6.54247]
[1732891784505,1.60812283,3622.4,3622.3,3.7818]
[1732891784677,1.60812283,3622.4,3622.3,4.59720367]
[1732891784921,1.60812283,3622.4,3622.3,7.59720367]
[1732891785421,0.76905699,3622.4,3622.3,7.60940367]
[1732891785587,1.19775609,3622.4,3622.3,7.60940367]
[1732891785920,1.19774642,3622.4,3622.3,7.60940367]
[1732891786424,1.19774642,3622.4,3622.0,0.28847217]
[1732891786724,1.19774642,3622.3,3622.2,2.76075]
[1732891787421,1.19774642,3622.3,3622.1,2.76082]
[1732891787572,0.7997,3622.8,3622.3,2.76061]
[1732891787935,0.94148177,3622.7,3622.4,2.7882031]
[1732891788083,0.17261776,3622.6,3622.4,3.03942031]
[1732891788322,0.42890576,3622.5,3622.4,2.7606]
[1732891788524,1.19776977,3622.5,3622.4,2.7606]
[1732891789624,1.19776977,3622.5,3622.2,2.13938058]
[1732891789824,1.19776977,3622.4,3622.3,2.76067]
[1732891790135,1.19776977,3622.4,3622.2,2.13938058]
[1732891790328,1.19776977,3622.4,3622.0,6.20461631]
[1732891790329,0.17261776,3622.3,3622.0,0.28847217]
[1732891790568,0.17261776,3622.2,3621.9,2.76017]
[1732891790738,1.042188,3622.3,3621.9,2.76017]
[1732891790739,1.19776977,3622.1,3622.0,2.76088]
[1732891791057,1.19776977,3622.1,3621.4,2.76128]
[1732891791276,1.19776977,3622.0,3621.5,2.76127]
[1732891791429,0.256288,3621.9,3621.5,2.76127]
[1732891791621,1.02515201,3621.9,3621.5,2.76127]
[1732891791826,0.256288,3621.8,3621.1,2.76158]
[1732891792043,0.7521,3621.6,3621.1,1.13907222]
[1732891792362,0.7521,3621.6,3620.4,3.15524414]
[1732891792363,1.02515201,3621.5,3620.8,0.02761218]
[1732891792517,1.02515201,3621.4,3621.0,2.76163]
[1732891792720,1.19776977,3621.3,3621.0,2.76163]
[1732891792957,0.7521,3621.6,3621.1,2.76159]
[1732891792958,1.19776977,3621.2,3621.1,2.76159]
[1732891793139,1.19776977,3621.2,3620.7,3.31567379]
[1732891793348,0.42890576,3621.1,3620.7,0.64709179]
[1732891793556,0.42890576,3621.0,3620.7,0.64709179]
[1732891793788,0.94148177,3620.9,3620.4,2.76211]
[1732891794079,0.94148177,3620.8,3620.4,3.15524414]
[1732891794278,0.94148177,3620.8,3620.1,0.8197]
[1732891794279,1.19776977,3620.7,3620.1,0.8197]
[1732891794485,0.7525,3621.2,3620.7,2.76187]
[1732891794642,2.13630633,3621.1,3620.3,2.7622]
[1732891794833,0.94106019,3621.0,3620.8,2.76177]
[1732891795037,1.19717717,3620.9,3620.8,2.76177]
[1732891795334,1.60683222,3620.9,3620.8,6.74141414]
[1732891795538,1.60683222,3620.9,3620.8,6.97964414]
[1732891795787,0.8003,3622.3,3621.0,3.8244]
[1732891795984,0.8003,3622.3,3621.8,2.76102]
[1732891796188,1.19467479,3622.9,3621.8,2.76102]
[1732891796189,0.7878,3622.8,3622.1,2.76077]
[1732891796483,0.7878,3622.8,3622.2,2.76074]
[1732891796889,0.7878,3622.8,3621.8,0.822]
[1732891797044,0.7878,3622.8,3622.2,2.76074]
[1732891797451,0.7878,3622.8,3622.0,2.76084]
[1732891797677,0.7878,3622.8,3622.0,3.395281]
[1732891797876,0.7878,3622.8,3622.2,2.76074]
[1732891798094,0.7878,3622.8,3622.5,2.76047]
[1732891798385,0.29119069,3623.9,3622.5,2.76047]
[1732891798386,0.8274,3623.2,3622.5,2.76047]
[1732891798748,0.8274,3623.2,3622.3,2.78820525]
[1732891798749,0.8274,3623.2,3622.3,0.02760264]
[1732891798996,0.8274,3623.2,3622.8,2.76027]
[1732891799374,0.7742,3624.1,3622.7,2.76035]
[1732891799607,0.7742,3624.1,3622.8,2.76028]
[1732891799782,0.20512913,3624.2,3622.6,3.15524414]
[1732891799783,0.7742,3624.0,3622.6,2.76044]
[1732891799955,0.7742,3624.0,3622.6,2.7604]
[1732891800156,0.7742,3624.0,3622.4,2.76052]
[1732891800359,0.7742,3624.0,3622.2,3.15524414]
[1732891800360,0.7742,3624.0,3622.5,2.76051]
[1732891800553,0.55,3623.7,3622.5,2.76051]
[1732891800758,0.7706,3623.6,3622.4,2.76059]
[1732891800979,0.7706,3623.6,3622.3,3.0]
[1732891801291,0.7706,3623.6,3622.4,2.76058]
[1732891801501,0.7706,3623.6,3622.5,2.76051]
[1732891801806,0.7706,3623.6,3622.6,3.15524414]
[1732891801953,0.7706,3623.6,3623.3,2.75985]
[1732891802148,0.08630142,3623.8,3623.2,0.02759691]
[1732891802350,0.17259291,3623.8,3623.7,2.75961]
[1732891802557,0.08630142,3623.8,3623.7,3.0]
[1732891802852,0.08630142,3623.8,3623.7,5.75961]
[1732891803419,0.02586658,3624.6,3623.7,5.75961]
[1732891803420,0.02586658,3624.6,3623.7,3.0]
[1732891803620,0.7595,3625.6,3625.1,2.75854]
[1732891803824,0.7595,3625.6,3624.6,3.15524414]
[1732891804347,0.17248423,3625.5,3624.7,2.75883]
[1732891804529,0.17248423,3625.5,3624.6,3.15524414]
[1732891805340,0.7595,3625.6,3624.6,3.15524414]
[1732891805341,0.17248423,3625.4,3624.6,3.15524414]
[1732891805543,0.833,3625.2,3624.2,3.15524414]
[1732891805694,0.833,3625.0,3623.8,3.15524414]
[1732891806022,1.21573948,3624.9,3623.8,3.15524414]
[1732891806225,0.94217223,3624.8,3623.8,3.15524414]
[1732891806537,1.35267249,3624.7,3623.8,3.15524414]
[1732891806845,1.35267249,3624.7,3623.5,0.832]
[1732891806846,0.42752259,3624.0,3623.4,5.91506414]
[1732891807010,0.42754936,3623.7,3623.4,5.91506414]
[1732891807233,0.95638423,3624.6,3623.4,5.91506414]
[1732891807234,0.41050026,3623.6,3623.4,5.91506414]
[1732891807433,0.58298449,3623.5,3623.4,3.15524414]
[1732891807616,0.66699335,3623.5,3623.4,3.15524414]
[1732891808247,0.66699335,3623.5,3622.4,0.7976]
[1732891808445,0.9846588,3623.4,3622.5,2.76051]
[1732891808650,0.9846588,3623.4,3622.4,3.95284414]
[1732891808651,0.4290492,3623.3,3622.8,3.15524414]
[1732891808866,0.83954946,3623.2,3622.8,3.15524414]
[1732891809067,1.26709882,3623.1,3622.4,3.15524414]
[1732891809221,0.42754936,3622.9,3622.4,3.15524414]
[1732891809419,0.83954946,3622.8,3622.4,3.15524414]
[1732891809645,1.26709882,3622.7,3622.4,3.15524414]
[1732891809822,0.66699335,3622.6,3622.4,3.15524414]
[1732891810031,0.41050026,3622.5,3622.4,3.15524414]
[1732891810235,0.66699335,3622.5,3622.4,3.15524414]
[1732891810443,0.83960426,3622.5,3622.0,3.15524414]
[1732891810644,0.25649309,3622.5,3622.1,0.59162041]
[1732891810877,0.42754936,3623.1,3622.2,0.7565]
[1732891810878,0.66698313,3622.4,3622.2,0.7565]
[1732891811033,0.25649309,3622.3,3622.1,3.35244041]
[1732891811334,0.17261161,3622.8,3622.1,3.35244041]
[1732891811540,0.66701486,3622.7,3622.1,0.59162041]
[1732891811866,0.25654418,3622.6,3622.1,0.59162041]
[1732891812035,0.25654418,3622.5,3622.1,0.59162041]
[1732891812232,0.25654418,3622.4,3622.1,3.35243041]
[1732891812437,0.8009,3622.9,3622.2,3.43909101]
[1732891812636,0.66699624,3622.8,3622.4,3.15524414]
[1732891812964,0.25653701,3622.7,3622.4,3.18284724]
[1732891813129,0.42754936,3623.5,3622.6,2.76044]
[1732891813333,0.42754936,3623.7,3623.0,3.15524414]
[1732891813568,0.66680287,3623.6,3623.0,3.15524414]
[1732891813878,0.8163,3624.1,3623.1,0.02759691]
[1732891814165,0.8163,3624.1,3623.0,3.15524414]
[1732891814166,0.66680476,3624.0,3623.0,3.15524414]
[1732891814332,3.31676393,3625.1,3623.0,3.15524414]
[1732891814333,0.25646337,3623.9,3623.8,3.15524414]
[1732891814662,0.25646337,3623.9,3623.8,5.91477414]
[1732891814862,0.7913,3624.6,3624.0,2.75938]
[1732891815066,0.25643604,3624.5,3623.8,3.15524414]
[1732891815222,0.7913,3624.6,3623.8,3.15524414]
[1732891815682,0.25636747,3624.5,3623.8,3.15524414]
[1732891815966,3.55023,3624.6,3623.1,3.07557441]
[1732891816118,0.88729827,3624.5,3623.4,5.91503414]
[1732891816319,0.25639727,3624.5,3623.5,0.0275942]
[1732891816544,0.7913,3624.6,3623.4,3.14956588]
[1732891816545,0.25639727,3624.4,3623.4,3.14956588]
[1732891817019,0.7913,3624.6,3623.4,3.14956588]
[1732891817258,0.25638522,3624.5,3623.4,3.14956588]
[1732891817416,0.8238,3624.3,3623.0,6.15524414]
[1732891817624,1.08018522,3624.3,3623.0,6.15524414]
[1732891817822,0.8238,3624.3,3623.0,6.15524414]
[1732891818123,0.256393,3624.2,3623.0,3.15524414]
[1732891818330,0.67839435,3624.1,3623.0,3.15524414]
[1732891818550,1.076193,3624.0,3623.0,3.15524414]
[1732891818750,0.8198,3623.8,3622.6,3.15524414]
[1732891818954,1.626193,3623.8,3622.6,3.15524414]
[1732891819421,4.385733,3623.8,3622.6,3.15524414]
[1732891819627,0.55,3623.6,3622.6,3.15524414]
[1732891820064,0.80643514,3623.6,3622.6,3.15524414]
[1732891820374,0.55,3623.6,3622.2,3.8060116]
[1732891820670,3.5831,3623.2,3621.8,3.15524414]
[1732891820853,0.55,3623.1,3621.8,3.15524414]
[1732891821057,0.55,3623.1,3621.9,2.78851584]
[1732891821569,0.8231,3623.2,3621.9,0.02760584]
[1732891821723,0.8231,3623.2,3622.3,2.76066]
[1732891821928,0.8231,3623.2,3622.2,3.15524414]
[1732891821929,0.8231,3623.2,3622.4,0.59159041]
[1732891822139,0.25649035,3623.7,3623.0,3.15524414]
[1732891822140,0.8224,3623.7,3623.0,3.15524414]
[1732891822337,0.8224,3623.7,3623.1,2.78758746]
[1732891822681,0.8224,3623.7,3623.2,2.75998]
[1732891822860,0.8083,3624.4,3623.4,5.91506414]
[1732891823188,0.1,3625.5,3623.4,5.91506414]
[1732891823189,1.06481603,3624.8,3623.8,3.15524414]
[1732891823480,0.8083,3624.8,3623.8,5.91470414]
[1732891823879,0.8083,3624.8,3623.8,3.15524414]
[1732891824181,0.8083,3624.8,3623.2,3.0]
[1732891824332,0.46180168,3625.0,3623.1,4.35767845]
[1732891824673,0.8325,3624.8,3623.8,2.75953]
[1732891824873,0.8325,3624.8,3623.7,2.75955]
[1732891825079,0.8325,3624.8,3623.6,3.52567845]
[1732891825442,0.8325,3624.8,3623.4,2.75983]
[1732891825639,0.41042566,3625.1,3624.3,2.75914]
[1732891825974,0.8107,3625.4,3624.1,3.52567845]
[1732891826190,0.7861,3625.4,3623.7,3.0]
[1732891826474,0.79,3624.8,3623.6,3.52567845]
[1732891826634,3.54878,3624.8,3623.6,3.52567845]
[1732891826836,0.354878,3624.7,3623.6,3.52567845]
[1732891827249,0.354878,3624.7,3623.2,3.0]
[1732891827250,2.75894,3624.6,3623.3,3.0]
[1732891827475,2.75885,3624.7,3623.2,3.0]
[1732891827666,2.75895,3624.6,3623.2,5.75997]
[1732891828179,0.55,3624.5,3623.2,3.0]
[1732891828393,0.79,3624.8,3623.6,6.28534845]
[1732891828537,0.79,3624.8,3623.9,2.75938]
[1732891828736,0.79,3624.8,3624.0,2.75937]
[1732891829297,0.79,3624.8,3624.1,2.7593]
[1732891829457,0.96034735,3625.4,3624.1,4.28967845]
[1732891829674,0.7546,3625.4,3624.3,2.75909]
[1732891829875,0.7546,3625.4,3624.5,2.75898]
[1732891830079,0.7546,3625.4,3624.7,3.0]
[1732891830288,0.7546,3625.4,3624.7,5.75883]
[1732891830494,0.7546,3625.4,3624.7,3.0]
[1732891830693,0.7546,3625.4,3624.7,4.20435484]
[1732891830856,0.7558,3625.9,3624.8,0.02758311]
[1732891831058,0.25719869,3626.0,3624.8,0.02758311]
[1732891831059,0.7743,3626.4,3625.3,2.75836]
[1732891831257,0.7743,3626.4,3625.1,6.28420845]
[1732891831258,0.7743,3626.4,3625.2,2.75841]
[1732891831799,0.7743,3626.4,3625.1,3.52567845]
[1732891832003,0.39943539,3626.3,3624.7,6.96313484]
[1732891832218,0.39943539,3626.3,3624.6,6.28459845]
[1732891832219,0.7743,3626.2,3624.6,6.28459845]
[1732891832373,2.75794,3625.9,3624.6,3.52567845]
[1732891832578,2.75783,3626.1,3624.6,6.28458845]
[1732891832763,0.55,3626.0,3624.6,6.28458845]
[1732891832965,0.408213,3625.9,3624.7,2.75879]
[1732891833174,0.55,3626.1,3624.7,2.75879]
[1732891833595,0.55,3626.1,3624.6,6.28457845]
[1732891833781,0.55,3626.1,3624.7,2.78642297]
[1732891833983,0.7743,3626.2,3625.2,2.75842]
[1732891834179,0.7743,3626.2,3625.1,3.52567845]
[1732891834469,0.7743,3626.2,3624.7,5.75877]
[1732891834470,3.53201,3626.2,3624.7,5.75877]
[1732891834772,0.628958,3626.1,3624.8,2.75872]
[1732891834977,0.628958,3626.1,3624.9,2.75868]
[1732891835180,0.7743,3626.2,3624.9,2.75868]
[1732891835378,0.7743,3626.2,3625.1,2.75854]
[1732891835891,0.7743,3626.2,3624.9,2.75868]
[1732891835892,0.7743,3626.2,3625.0,2.75859]
[1732891836496,0.7743,3626.2,3625.1,2.75852]
[1732891836693,0.7743,3626.2,3625.2,2.75846]
[1732891836893,0.7743,3626.2,3625.0,2.75857]
[1732891837280,0.353186,3626.1,3625.0,2.75857]
[1732891837677,0.353186,3626.1,3624.7,3.0]
[1732891837881,0.7743,3626.2,3625.5,2.75822]
[1732891838306,0.7743,3626.2,3625.5,0.02757933]
[1732891838481,0.7743,3626.2,3625.1,0.8206]
[1732891838682,0.7743,3626.2,3625.1,3.0]
[1732891839120,0.7743,3626.2,3624.7,4.28847845]
[1732891839304,3.53201,3626.2,3624.8,5.75874]
[1732891839511,0.7743,3626.2,3624.9,2.75864]
[1732891840102,2.75799,3625.9,3624.7,3.52567845]
[1732891840299,0.8309,3625.9,3624.8,2.75876]
[1732891840600,0.8309,3625.9,3624.7,6.28451845]
[1732891840798,0.41388,3625.8,3624.7,3.52567845]
[1732891841011,0.8309,3625.9,3625.3,2.75839]
[1732891841186,0.8309,3625.9,3624.7,3.52567845]
[1732891841187,0.8309,3625.9,3625.1,2.75849]
[1732891841387,0.8309,3625.9,3625.4,2.75831]
[1732891841592,0.8309,3625.9,3625.5,2.75822]
[1732891841962,0.8124,3626.3,3625.5,2.75822]
[1732891842729,0.8124,3626.3,3625.3,2.75836]
[1732891842896,0.8124,3626.3,3625.3,3.357672]
[1732891843095,0.8124,3626.3,3625.3,0.599292]
[1732891843323,0.8124,3626.3,3625.2,6.28411845]
[1732891844327,0.8124,3626.3,3625.2,5.91418279]
[1732891844697,0.8124,3626.3,3625.4,2.75824]
[1732891844896,0.8124,3626.3,3625.2,5.91417279]
[1732891845788,0.8124,3626.3,3625.4,2.7583]
[1732891845992,0.8124,3626.3,3625.5,2.75823]
[1732891846187,0.8124,3626.3,3625.4,0.86724628]
[1732891846622,0.8124,3626.3,3625.4,3.62553628]
[1732891847032,0.8124,3626.3,3625.6,3.15574279]
[1732891847245,0.8124,3626.3,3626.0,3.15574279]
[1732891847533,0.8124,3626.3,3625.8,2.758]
[1732891847737,0.8124,3626.3,3625.8,3.70851828]
[1732891848497,0.8124,3626.3,3625.8,0.95051828]
[1732891848725,0.8124,3626.3,3625.9,2.75793]
[1732891848992,0.7662,3626.8,3626.2,2.75765]
[1732891849311,0.7662,3626.8,3626.0,5.91359279]
[1732891849620,0.7662,3626.8,3626.0,7.1758119]
[1732891849820,0.7662,3626.8,3626.1,2.75775]
[1732891850208,3.77917291,3627.4,3626.0,4.4179619]
[1732891850407,0.8172,3627.1,3626.0,3.15574279]
[1732891850809,0.55,3626.8,3625.6,3.15574279]
[1732891851011,0.8172,3626.7,3625.6,3.15574279]
[1732891851707,1.02269718,3626.7,3625.6,3.15574279]
[1732891851910,0.55,3626.6,3625.6,3.15574279]
[1732891852116,0.76226972,3626.6,3625.6,5.91383279]
[1732891852856,0.76226972,3626.6,3625.6,3.15574279]
[1732891853205,0.96798499,3626.6,3625.6,3.15574279]
[1732891853645,0.76226972,3626.6,3625.6,5.91385279]
[1732891854342,0.7505,3626.5,3625.6,3.15574279]
[1732891854643,1.25922297,3626.5,3625.6,3.15574279]
[1732891854836,0.55,3626.4,3625.6,3.15574279]
[1732891855023,1.25922297,3626.5,3626.0,3.15574279]
[1732891855024,0.7505,3626.5,3626.0,3.15574279]
[1732891855200,0.7505,3626.5,3626.2,2.75769]
[1732891855599,0.7505,3626.5,3626.0,5.91355279]
[1732891855802,0.7505,3626.5,3626.1,0.86714628]
[1732891856576,0.7505,3626.5,3626.1,3.62485628]
[1732891856783,0.8186,3626.9,3626.1,3.62485628]
[1732891857141,0.8186,3626.9,3626.1,3.62487628]
[1732891857372,0.8186,3626.9,3626.1,3.62490628]
[1732891858395,0.8186,3626.9,3626.2,0.95385591]
[1732891858545,0.8186,3626.9,3626.2,3.71155591]
[1732891859238,0.8186,3626.9,3626.2,0.95385591]
[1732891859488,0.20624085,3626.8,3626.2,0.95385591]
[1732891859638,0.8186,3626.9,3626.2,0.95385591]
[1732891859841,0.20624418,3626.8,3626.2,0.95385591]
[1732891860083,0.8186,3626.9,3626.1,2.75778]
[1732891860255,0.20628134,3626.8,3626.0,3.15574279]
[1732891860455,0.20628134,3626.7,3626.0,3.15574279]
[1732891860677,0.8186,3626.9,3626.0,3.15574279]
[1732891860895,0.8186,3626.9,3625.8,2.75794]
[1732891861061,0.20628373,3626.8,3625.9,4.00712428]
[1732891861395,0.20628373,3626.7,3626.0,3.15574279]
[1732891861547,0.8186,3626.9,3626.0,3.15574279]
[1732891861891,0.2062722,3626.8,3626.0,3.15574279]
[1732891862051,0.2062722,3626.7,3626.0,5.91359279]
[1732891862242,0.8186,3626.9,3626.2,2.75767]
[1732891862589,0.8186,3626.9,3626.1,3.74986271]
[1732891862790,0.8186,3626.9,3626.1,0.99208271]
[1732891863097,0.8186,3626.9,3626.0,3.15574279]
[1732891863275,0.20631116,3626.8,3626.0,5.91359279]
[1732891863451,0.8186,3626.9,3626.0,5.91359279]
[1732891863654,0.29252869,3626.8,3626.0,5.91359279]
[1732891863869,0.08621944,3626.8,3626.0,5.91359279]
[1732891864044,0.8186,3626.9,3626.1,2.75778]
[1732891864248,0.08621657,3626.7,3626.1,2.75778]
[1732891864485,0.08621657,3626.7,3626.1,3.74984871]
[1732891864692,0.8186,3626.9,3626.1,3.74984871]
[1732891864890,0.8186,3626.9,3626.1,0.99206871]
[1732891865064,0.08621486,3626.6,3625.8,2.75799]
[1732891865266,0.08621486,3626.8,3625.6,3.15574279]
[1732891865572,0.7887,3626.4,3625.3,2.75837]
[1732891865774,0.08621486,3626.3,3625.4,2.7583]
[1732891865978,0.08621486,3626.2,3625.4,0.86724128]
[1732891866276,0.08621486,3626.1,3625.2,3.15574279]
[1732891866478,0.7887,3626.4,3625.3,2.78596946]
[1732891866654,0.29258698,3626.3,3625.5,2.75823]
[1732891866848,0.7887,3626.4,3625.5,2.75823]
[1732891867187,0.34432665,3626.3,3625.5,2.75823]
[1732891867402,0.7561,3626.2,3625.2,5.91420279]
[1732891867558,0.7561,3626.2,3625.3,2.75838]
[1732891867960,0.7561,3626.2,3625.2,3.15574279]
[1732891868306,0.7561,3626.2,3625.5,2.75818]
[1732891868458,0.7561,3626.2,3625.6,0.275818]
[1732891868665,0.7561,3626.2,3625.6,3.033958]
[1732891868866,0.7561,3626.2,3625.5,2.75823]
[1732891869358,0.7561,3626.2,3624.8,3.15574279]
[1732891869562,0.7561,3626.0,3625.1,2.75849]
[1732891869802,0.20642004,3625.9,3625.2,2.75845]
[1732891869997,0.7561,3626.0,3625.2,2.75845]
[1732891870169,0.20641951,3625.9,3625.3,2.75838]
[1732891870370,0.7561,3626.0,3625.4,2.75826]
[1732891870586,0.7561,3626.0,3625.4,3.62825336]
[1732891870802,0.7561,3626.0,3625.5,2.75819]
[1732891871166,0.7561,3626.0,3625.6,2.75816]
[1732891871474,0.7561,3626.0,3625.6,2.75811]
[1732891872266,0.7561,3626.0,3625.5,2.75819]
[1732891872509,0.7561,3626.0,3625.5,3.71241261]
[1732891872672,0.7561,3626.0,3625.2,5.91418279]
[1732891873186,0.7561,3626.0,3625.4,2.7583]
[1732891873614,0.7561,3626.0,3625.2,5.91415279]
[1732891874108,0.7561,3626.0,3624.8,2.75876]
[1732891874267,0.7982,3625.8,3624.7,3.30889386]
[1732891874461,0.20644185,3625.7,3624.9,3.15574279]
[1732891874666,0.7982,3625.8,3625.0,2.75861]
[1732891874872,0.20643913,3625.7,3625.0,2.75861]
[1732891875077,0.7982,3625.8,3625.0,2.75861]
[1732891875311,0.20644391,3625.7,3625.0,2.75861]
[1732891875483,0.20644391,3625.6,3625.4,2.75826]
[1732891875683,0.7982,3625.8,3625.0,0.92232167]
[1732891875915,0.7982,3625.8,3625.1,2.75848]
[1732891875916,0.20638245,3625.7,3625.1,2.75848]
[1732891876112,0.7982,3625.8,3625.1,2.75848]
[1732891876315,0.7982,3625.8,3624.9,5.91442279]
[1732891876316,0.20638236,3625.7,3624.9,5.91437279]
[1732891876525,0.7982,3625.8,3625.0,2.75859]
[1732891876815,0.7982,3625.8,3624.9,5.91437279]
[1732891876816,0.20636972,3625.7,3624.9,5.91443279]
[1732891877034,0.20636972,3625.6,3624.5,2.75897]
[1732891877178,0.8263,3625.5,3624.5,3.43050128]
[1732891877378,0.20638103,3625.4,3624.5,3.43050128]
[1732891877582,1.03928103,3625.3,3624.5,3.43050128]
[1732891878018,0.20638103,3625.2,3624.5,3.43050128]
[1732891878203,0.8329,3625.3,3624.6,2.67194986]
[1732891879010,0.8329,3625.3,3624.6,6.37290092]
[1732891879193,0.8329,3625.3,3624.7,2.75884]
[1732891879931,0.8329,3625.3,3624.6,3.61403092]
[1732891880108,0.8329,3625.3,3624.6,6.37289092]
[1732891880513,0.8329,3625.3,3624.6,6.37290092]
[1732891880694,0.8329,3625.3,3624.7,0.91318709]
[1732891881410,0.8329,3625.3,3624.6,2.67194986]
[1732891881411,0.8329,3625.3,3624.6,5.43086986]
[1732891882907,0.8329,3625.3,3624.7,2.7588]
[1732891883084,0.8329,3625.3,3624.8,2.75874]
[1732891883399,0.8329,3625.3,3625.0,2.67194986]
[1732891883586,0.8039,3625.6,3625.2,2.75842]
[1732891883786,0.8039,3625.6,3625.3,2.75832]
[1732891884300,0.8039,3625.6,3625.4,2.75825]
[1732891884519,1.00993192,3626.2,3625.5,2.75824]
[1732891884690,0.20603192,3626.1,3625.3,2.75832]
[1732891885031,0.8039,3626.2,3625.1,3.02567499]
[1732891885343,0.8049,3626.0,3625.0,2.75855]
[1732891885503,0.8049,3626.0,3625.1,2.7585]
[1732891885692,0.8049,3626.0,3625.2,2.75845]
[1732891886307,0.8049,3626.0,3625.3,0.02758221]
[1732891886594,0.8049,3626.0,3625.4,2.66166555]
[1732891887222,0.8049,3626.0,3625.2,2.75845]
[1732891887223,0.8049,3626.0,3625.5,2.75822]
[1732891887428,0.8049,3626.0,3625.2,2.75844]
[1732891887639,0.8049,3626.0,3625.4,2.75831]